Cogmind - Beta 14 @@@ ROGUE MODE // 2025.04.25 @ 20:48:45 Player: Centeno Result: Self-destructed Performance ------------- Evolutions (1) 500 Regions Visited (3) 600 Robots Destroyed (34) 170 Value Destroyed (628) 628 Prototype IDs (6) 120 Alien Tech Used (0) 0 Bonus (0) 0 TOTAL SCORE: 2018 Bonus ------- None Cogmind --------- Core Integrity 250/400 Matter 222/300 Energy 28/100 System Corruption 0% Temperature Cool (3) Movement Core (150) Ox2 Location -9/Materials Parts ------- > --- POWER (1) -------- (None) > --- PROPULSION (3) --- (None) > --- UTILITY (3) ------ Small Storage Unit Experimental Sensor Array Seismic Detector > --- WEAPON (2) ------- (None) > --- INVENTORY (8) ---- Ion Engine Flight Unit Flight Unit Flight Unit Hacking Suite Grenade Launcher Peak State ------------ > --- POWER ------------ Light Nuclear Core > --- PROPULSION ------- Light Treads Light Treads > --- UTILITY ---------- Small Storage Unit Experimental Sensor Array > --- WEAPON ----------- EM Pulse Gun Medium Laser > --- INVENTORY -------- Ion Engine Flight Unit Flight Unit Flight Unit Flight Unit Seismic Detector Hacking Suite Grenade Launcher [Rating: 18] Favorites ----------- Power Ion Engine Engine Ion Engine Power Core Light Nuclear Core Propulsion Light Treads Treads Light Treads Utility Small Storage Unit Device Seismic Detector Storage Small Storage Unit Weapon Assault Rifle Energy Gun EM Pulse Gun Ballistic Gun Assault Rifle Launcher Rocket Launcher Build | -11 -10 -10 -9 ------- Run | Yrd Mat Min Mat Slots Evolved 2 | . . . 2 Power . | . . . . Propulsion 1 | . . . 1 Utility 1 | . . . 1 Weapon . | . . . . Parts Attached 23 | 7 7 5 4 Power 3 | 1 1 1 . Engine 2 | 1 1 . . Core 1 | . . 1 . Reactor . | . . . . Propulsion 3 | 2 1 . . Treads 3 | 2 1 . . Leg . | . . . . Wheel . | . . . . Hover . | . . . . Flight . | . . . . Utility 6 | 1 2 2 1 Device 5 | . 2 2 1 Storage 1 | 1 . . . Processor . | . . . . Hackware . | . . . . Protection . | . . . . Artifact . | . . . . Weapon 11 | 3 3 2 3 Energy Gun 8 | 1 3 1 3 Energy Cannon . | . . . . Ballistic Gun 2 | 2 . . . Ballistic Cannon . | . . . . Launcher 1 | . . 1 . Special Weapon . | . . . . Impact Weapon . | . . . . Slashing Weapon . | . . . . Piercing Weapon . | . . . . Special Melee Weapon . | . . . . Unidentified Prototypes 1 | . . 1 . Parts Lost 9 | . 1 2 6 Power 1 | . . . 1 Propulsion 2 | . . 1 1 Utility . | . . . . Weapon 6 | . 1 1 4 Highest Loss Streak 6 | . 1 1 6 To Critical Strikes . | . . . . Average Slot Usage (%) 96 | . 96 100 70 Engine 10 | . 14 3 . Core 3 | . . 10 9 Treads 26 | . 28 28 9 Device 12 | . 11 14 22 Storage 13 | . 14 14 11 Energy Gun 11 | . 7 20 10 Ballistic Gun 14 | . 20 3 . Launcher 1 | . . 4 9 Peak Build Rating 18 | 6 8 18 18 Average Rating 8 | 4 7 9 16 On Entrance 6 | . 6 8 10 Naked Turns . | . . . . Heaviest Build 18 | 13 15 17 18 Greatest Support 40 | 40 40 40 20 Greatest Overweight (x) 2 | . . . 2 Average Overweight (x) . | . . . . Largest Inventory Capacity 8 | 8 8 8 8 Average Capacity 7 | 5 8 8 8 Most Carried 8 | 3 8 8 7 Average Carried 6 | 1 5 7 6 Final Capacity 8 | 8 8 8 8 Final Carried 8 | 3 8 8 6 Class Distribution -------------------- 100% | Mutant Dominant Class ---------------- Mutant | -10/Materials Mutant | -10/Mines Mutant | -9/Materials Resources | -11 -10 -10 -9 ----------- Run | Yrd Mat Min Mat Matter Collected 670 | 286 307 31 46 Remotely . | . . . . Salvage Created 915 | 119 566 98 132 Parts 66 | 6 42 10 8 Haulers Intercepted 2 | . 2 . . Recyclers Shooed . | . . . . Parts Field Recycled . | . . . . Retrieved Matter . | . . . . Parts Self-Destructed . | . . . . Prevented . | . . . . Kills | -11 -10 -10 -9 ------- Run | Yrd Mat Min Mat Combat Hostiles Destroyed 24 | . 14 5 5 Guns 18 | . 14 2 2 AOE 6 | . . 3 3 Classes Destroyed 9 | 2 6 . 1 Worker 2 | . 1 . 1 Tunneler 1 | 1 . . . Hauler 2 | . 2 . . Recycler 2 | 1 . . 1 Operator 1 | . 1 . . Watcher 2 | . 2 . . Swarmer 15 | . 9 3 3 Grunt 8 | . 5 2 1 Duelist 1 | . . . 1 Best Kill Streak 7 | 2 3 3 7 Combat Bots Only 5 | . 3 3 5 Max Kills in Single Turn 3 | 1 2 2 3 Gunslinging 1 | . 1 . . Exploded 3 | . . 2 3 Melee . | . . . . Uniques/NPCs Destroyed . | . . . . Combat | -11 -10 -10 -9 -------- Run | Yrd Mat Min Mat Hostile Shots Fired 131 | . 62 36 33 Missed 36 | . 15 9 12 Damage Taken 1156 | . 473 322 361 Core 246 | . 67 29 150 Absorbed by Shields . | . . . . Regen/Repaired (Parts) 15 | . 15 . . Core Remaining (%) 80 | 100 . 61 . Volleys Fired 92 | 4 65 11 12 Largest 2 | 2 2 2 2 Hottest 90 | 40 70 90 83 Shots Fired 173 | 8 127 21 17 Gun 166 | 8 127 19 12 Cannon . | . . . . Launcher 7 | . . 2 5 Special . | . . . . Kinetic 116 | 8 102 6 . Thermal 19 | . 3 4 12 Explosive 7 | . . 2 5 Electromagnetic 31 | . 22 9 . Robot Hit Streak 12 | 4 12 4 8 Robot Miss Streak 4 | 1 4 2 1 Penetration Max . | . . . . Secondary Targets 3 | . 3 . . Max Gunslinging Chain 1 | . 1 . . Shots Hit Robots 101 | 5 74 9 13 Core Hits 53 | 4 31 7 11 Critical Kills 1 | 1 . . . Critical Parts Destroyed . | . . . . Critical Strikes 2 | 1 . 1 . Destroy 1 | 1 . . . Corrupt 1 | . . 1 . Melee Attacks . | . . . . Impact . | . . . . Slashing . | . . . . Piercing . | . . . . Sneak Attacks . | . . . . Combat Hostiles . | . . . . Follow-up Attacks . | . . . . Damage Inflicted 1937 | 49 898 282 708 Guns 1178 | 49 898 115 116 Cannons . | . . . . Explosions 759 | . . 167 592 Melee . | . . . . Ramming . | . . . . Kinetic 740 | 49 655 36 . Thermal 154 | . 13 25 116 Explosive 759 | . . 167 592 Electromagnetic 284 | . 230 54 . Impact . | . . . . Slashing . | . . . . Piercing . | . . . . Highest Corruption 1 | . 1 1 . Average Corruption 1 | . 1 1 . Corruption Purged . | . . . . Corruption Blocked . | . . . . Effects 6 | . 3 3 . Message Errors 3 | . 1 2 . Matter Fused 2 | . 1 1 . Data Loss (minor) 1 | . 1 . . Overload Shots . | . . . . Overflow Damage 18 | . . 5 13 Projectiles . | . . . . Explosions 18 | . . 5 13 Melee . | . . . . Knockbacks . | . . . . Impact . | . . . . Kinetic . | . . . . Secondary . | . . . . Self-Inflicted Damage 21 | . . . 21 Shots 1 | . . . 1 Rammed . | . . . . Targets Rammed . | . . . . Kicked . | . . . . Crushed . | . . . . Highest Temperature 139 | . 63 139 84 Average Temperature 36 | . 20 44 42 Received Heat Transfer 366 | . 123 183 60 Siege Activations . | . . . . Robots Corrupted . | . . . . Combat Hostiles . | . . . . Parts Fried 1 | . 1 . . Impact Corruptions . | . . . . Robots Melted . | . . . . Combat Hostiles . | . . . . Parts Melted . | . . . . Heat Transferred 481 | . 37 74 370 Parts Sabotaged . | . . . . Parts Stolen . | . . . . Parts Stripped . | . . . . Power Chain Reactions . | . . . . Alert | -11 -10 -10 -9 ------- Run | Yrd Mat Min Mat Peak Influence 259 | 10 259 204 210 Initial 63 | . 6 63 . Average 82 | 3 95 75 45 Maximum Alert Level 1 | . 1 1 1 Low Security (%) 93 | 100 90 98 93 Level 1 6 | . 9 1 6 Level 2 . | . . . . Level 3 . | . . . . Level 4 . | . . . . Level 5 . | . . . . High Security . | . . . . Max Security . | . . . . Squads Dispatched 1 | . 1 . . Investigation . | . . . . Extermination . | . . . . Reinforcement 1 | . 1 . . Assault . | . . . . Garrison . | . . . . Intercept . | . . . . Searches Triggered . | . . . . Construction Impeded . | . . . . Haulers Reinforced . | . . . . Active Scanning Responses . | . . . . Cargo Convoy Interrupts . | . . . . Stealth | -11 -10 -10 -9 --------- Run | Yrd Mat Min Mat Distress Signals 4 | . 2 . 2 Communications Jammed . | . . . . Distress Signals . | . . . . Times Spotted 43 | . 29 7 7 Peak Tracking Total 7 | . 4 3 7 Tactical Retreats 3 | . 2 1 . Traps | -11 -10 -10 -9 ------- Run | Yrd Mat Min Mat Traps Triggered 2 | . 2 . . Indirectly . | . . . . Trap Hack Attempts . | . . . . Triggered . | . . . . Disarmed . | . . . . Reprogrammed . | . . . . Reused . | . . . . Traps Extracted . | . . . . Installed . | . . . . Triggered . | . . . . Machines | -11 -10 -10 -9 ---------- Run | Yrd Mat Min Mat Machines Disabled 6 | . 1 . 5 Max in Single Turn 2 | . 1 . 2 Machines Repaired . | . . . . Machines Dismantled . | . . . . Machines Sabotaged . | . . . . Overloaded Fab Kills . | . . . . Hacking | -11 -10 -10 -9 --------- Run | Yrd Mat Min Mat Machines Accessed 12 | . 10 . 2 Terminals 8 | . 7 . 1 Fabricators . | . . . . Repair Stations 1 | . 1 . . Recycling Units 3 | . 2 . 1 Scanalyzers . | . . . . Garrison Access . | . . . . Total Hacks 32 | . 29 . 3 Successful 12 | . 11 . 1 Failed 20 | . 18 . 2 Catastrophic 3 | . 3 . . Database Lockouts . | . . . . Manual 3 | . 3 . . Terminals 25 | . 23 . 2 Fabricators . | . . . . Repair Stations 2 | . 2 . . Recycling Units 5 | . 4 . 1 Scanalyzers . | . . . . Garrison Access . | . . . . Terminal Hacks 7 | . 7 . . Prototype ID Bank 4 | . 4 . . Alert Level 1 | . 1 . . Locate Traps 1 | . 1 . . Transport Status 1 | . 1 . . Fabricator Hacks . | . . . . Repair Station Hacks 2 | . 2 . . Scan Component 1 | . 1 . . Repair 1 | . 1 . . Recycling Unit Hacks 3 | . 2 . 1 Retrieve Components 3 | . 2 . 1 Scanalyzer . | . . . . Garrison Access Hacks . | . . . . Unauthorized Hacks . | . . . . Terminals . | . . . . Fabricators . | . . . . Repair Stations . | . . . . Recycling Units . | . . . . Scanalyzers . | . . . . Garrison Access . | . . . . Data Cores Recovered . | . . . . Used . | . . . . Hacking Detections 10 | . 9 . 1 Full Trace Events . | . . . . Feedback Events . | . . . . Feedback Blocked . | . . . . Robot Schematics Acquired . | . . . . Robots Built . | . . . . Authchips . | . . . . Time . | . . . . Total Robot Build Rating . | . . . . Part Schematics Acquired . | . . . . Parts Built . | . . . . Authchips . | . . . . Time . | . . . . Total Part Build Rating . | . . . . Parts Repaired 1 | . 1 . . Time 13 | . 13 . . Parts Recycled . | . . . . Recycled Matter . | . . . . Retrieved Matter . | . . . . Retrieved Components 11 | . 9 . 2 Parts Scanalyzed . | . . . . Part Schematics Acquired . | . . . . Parts Damaged . | . . . . Bothacking | -11 -10 -10 -9 ------------ Run | Yrd Mat Min Mat Used RIF Installer . | . . . . Robots Hacked . | . . . . Non-combat . | . . . . Combat . | . . . . Robot Hacks Applied . | . . . . Relay Couplers Released . | . . . . Fabnet Peak Effective % . | . . . . Robots Rewired . | . . . . Allies Hacked . | . . . . Hacks Repelled . | . . . . Allies | -11 -10 -10 -9 -------- Run | Yrd Mat Min Mat Total Allies . | . . . . Largest Group . | . . . . Highest-Rated Group . | . . . . Highest-Rated Ally . | . . . . Total Orders . | . . . . Ally Attacks . | . . . . Total Damage . | . . . . Kills . | . . . . Allies Corrupted . | . . . . Allies Melted . | . . . . Intel | -11 -10 -10 -9 ------- Run | Yrd Mat Min Mat Robot Analysis Total . | . . . . Derelict Logs Recovered . | . . . . Drone Launches . | . . . . Drone Recoveries . | . . . . Exploration | -11 -10 -10 -9 ------------- Run | Yrd Mat Min Mat Turns Passed 2097 | 107 1288 577 125 Spaces Moved 1037 | 51 630 300 56 Core 5 | 1 . . 4 Treads 1032 | 50 630 300 52 Legs . | . . . . Wheels . | . . . . Hover . | . . . . Flight . | . . . . Fastest Speed 50 | 50 160 160 150 Average Speed 159 | 157 160 160 159 Slowest Speed 160 | 160 160 160 160 Overloaded Moves . | . . . . Propulsion Burnouts . | . . . . Robots Hopped . | . . . . Cave-ins Triggered . | . . . . Exploration Rate (%) 37 | 6 78 56 10 Regions Visited 3 Branch Regions 1 Pre-discovered Areas . | . . . . Known Exits Taken . | . . . . Unknown Exits Taken 3 | 1 1 1 . Scrap Searched 1 | . . 1 . Spaces Dug . | . . . . Terrain Destroyed 71 | . . 20 51 Melee . | . . . . Projectile . | . . . . AOE 71 | . . 20 51 Terrain Rammed . | . . . . Walls Destroyed . | . . . . Machines Disabled . | . . . . Actions | -11 -10 -10 -9 --------- Run | Yrd Mat Min Mat Total 1312 | 70 793 375 74 Wait 128 | . 73 55 . Move 1034 | 50 629 299 56 Hop . | . . . . Pick Up 26 | 9 12 3 2 Fast Attach 1 | . 1 . . Attach 13 | 6 2 1 4 Detach . | . . . . Swap 9 | 1 4 4 . Drop 9 | . 7 2 . Fire 92 | 4 65 11 12 Melee . | . . . . Ram . | . . . . Kick . | . . . . Crush . | . . . . Escape Stasis . | . . . . Rewire . | . . . . Trap . | . . . . Miscellaneous . | . . . . Route ------- -11/Scrapyard -10/Materials (discovered 4 exits: *Mat x3 / [*Min]) -10/Mines -9/Materials History --------- Turn | Location | Event 12 | -11/Scrapyard | Discovered new exit (range 16) 108 | -11/Scrapyard | Entered Materials 297 | -10/Materials | Discovered new exit (range 15) 318 | -10/Materials | Build established: Mutant 868 | -10/Materials | Discovered new exit (range 11) 1014 | -10/Materials | Repaired Seismic Detector 1062 | -10/Materials | Discovered new exit (range 10) 1140 | -10/Materials | Discovered new exit (range 6) 1396 | -10/Materials | Entered Mines 1604 | -10/Mines | Found a damaged Exp. Sensor Array with a note attached 1607 | -10/Mines | Found Prototype Device 1608 | -10/Mines | Identified Exp. Sensor Array 1649 | -10/Mines | Received a Rocket Launcher from a helpful Derelict 1960 | -10/Mines | Discovered new exit (range 9) 1973 | -10/Mines | Entered Materials 1973 | -9/Materials | Evolved 2 slots: Propulsion x1, Utility x1 2098 | -9/Materials | Self-destructed Last Messages --------------- 02083_ Acquired Backup Laser I. 02083_ U-05 Engineer lays Concrete. 02087_ Nuclear Reactor explodes. 02088_ The unstable cave ceiling collapses. 02088_ R-06 Scavenger collects Aluminum Leg. 02088_ U-05 Engineer builds a Wall. 02088_ U-05 Engineer lays Concrete. 02089_ L-31 Rogue destroyed. 02089_ U-05 Engineer lays Concrete. 02091_ Acquired 46 matter. 02092_ U-05 Engineer lays Concrete. 02093_ Backup Laser I destroyed. 02093_ U-05 Engineer lays Concrete. 02093_ R-06 Scavenger collects Aluminum Leg. 02094_ Acquired Med. Laser. 02094_ U-05 Engineer lays Concrete. 02095_ U-05 Engineer builds a Wall. 02096_ U-05 Engineer lays Concrete. 02097_ Med. Laser destroyed. 02098_ U-05 Engineer lays Concrete. Map ----- +----------------------------------------------------+ | ?????????????????????????????????????????? | | ?????????????????????????????????????????? | | ?????????????????????????????????????????? | | ?????????????????????????????????????????? | | ?????????????????????????????????????????? | | ?????????????????????????????????????????? | | ?????????????????????????????????????????? | | ?????????????????????????????????????????? | | ?????????????????????????????????????????? | | ?????????????????????????? ??????????????? | | ?????????????????????????? ??????????????? | | ?????????????????????????? #?????????????? | | ?????????????????????????? #?????????????? | | ?????????????????#??#+#### ##????????????? | | ?????????????????# #????????????? | | ????????????????## t????????????? | | ????????????????? #????????????? | | ?????????????????# << #????????????? | | ?????????????????# << #????????????? | | ?????????????????# << #????????????? | | ?????????????????# << #????????????? | | ???????????? """ # ########?????? | | ????????????? + ##"""""#?????? | | ?????????????????# ##""T""###???? | | ??????????????"" # m ! # #???? | | ???????????? " " # u % @ # """ ! #???? | | ????????# ? #u ! =" # """ #???? | | ????????# ## !* " # """ ! #???? | | ???????? ?% """ # #???? | | ????????? gr + """ #???? | | ????????? # """ #???? | | ?????????? #### # """ #???? | | ?????????? = ???# # #???? | | ?????????? ????# ##########???? | | ??????????? ????# # #???? | | ??????????? ?????# # #???? | | ???????????? ?????# # #???? | | ???????????? ??????# # ? #???? | | ?????????????? ??????# + !] #???? | | ???????????????? ???????# #""" !] #???? | | ????????????????????????# #"Y !!] #???? | | ????????????????????????# #"""* #???? | | ????????????????????????# # #???? | | ????????????????????????# ##########???? | | ????????????????????????# #????????????? | | ????????????????????????# #????????????? | | ????????????????????????# #????????????? | | ????????????????????????# #????????????? | | ????????????????????????# #####????????? | | ????????????????????????# #????????? | +----------------------------------------------------+ Best States ------------- Heat Dissipation 28 Energy Generation 14 Energy Capacity 250 Matter Stores 300 Matter Capacity 300 Sight Range 16 Robot Scan Range 20 Terrain Scan Density 10 Evasion (%) 40 Recoil Reduction 2 Item Schematics ----------------- None Robot Schematics ------------------ None Fabricated ------------ Nothing Alien Tech Used ----------------- None Achievements -------------- None Challenges ------------ None Game ------ Seed GlidesysTerrabombDevice Manual? 0 Play Time 00:19:41 Cumulative 2.4 hours Start 2025.04.25 @ 20:30:04 End 2025.04.25 @ 20:48:45 Sessions 1 Manual Loads 0 Difficulty Rogue Special Mode None Game No. 3 Rogue 3 Adventurer 0 Explorer 0 Win Type - Total 0 Types 0/0/0/0/0/0/0/0/0 Lore% 1 Gallery% 6 Achievement% 9 Wizard Run 0 Options --------- Layout 1 ASCII 0 Keyboard 0 Movement Mouse Keybinds 0 Fullscreen 1 Font 24/Smallcaps Map View 50x40 Zoom Use 31% Tactical HUD 1 Map Filters NONE Filters NONE Steam 1 RUN: b62b942e-7664-4930-9113-816a42e88992